[Event "World Senior chT-65 2019"]
[Site "Rhodes"]
[Date "2019.04.21"]
[Round "6.11"]
[White "Baumbach, Friedrich"]
[Black "Kiefer, Gerhard"]
[Result "1/2-1/2"]
[ECO "E97"]
[WhiteElo "2089"]
[BlackElo "2279"]
[Annotator "NA"]
[PlyCount "57"]
[EventDate "2019.04.16"]
[EventType "team-tourn"]
[EventCountry "GRE"]
[SourceTitle "playchess.com"]
[Source "ChessBase"]
[SourceQuality "1"]
[WhiteTeam "Germany"]
[BlackTeam "Germany"]
[WhiteTeamCountry "GER"]
[BlackTeamCountry "GER"]
[TimeControl "40/5400+30:1800+30"]

1. d4 {[%emt 0:01:03]} Nf6 {[%emt 0:00:00]} 2. c4 {[%emt 0:00:39]} g6 {[%emt 0:00:00]} 3. Nc3 {[%emt 0:00:16]} Bg7 {[%emt 0:00:14]} 4. e4 {[%emt 0:00:18]} d6 {[%emt 0:00:23]} 5. Nf3 {[%emt 0:00:23]} O-O {[%emt 0:00:00]} 6. Be2 {[%emt 0:00:08]} e5 {[%emt 0:00:00]} 7. O-O {[%emt 0:00:14]} Nc6 {[%emt 0:00:00]} 8. d5 {[%emt 0:00:26]} Ne7 {[%emt 0:00:00]} 9. b4 {[%emt 0:00:15]} Nh5 {[%emt 0:01:26]} 10. Re1 {[%emt 0:03:17]} f5 {[%emt 0:00:00]} 11. Ng5 {[%emt 0:03:23]} Nf6 {[%emt 0:05:12]} 12. Bf3 {[%emt 0:08:29]} c6 {[%emt 0:00:00]} 13. Ba3 {[%emt 0:04:44]} h6 {[%emt 0:02:38]} 14. Ne6 {[%emt 0:00:00]} Bxe6 {[%emt 0:00:10]} 15. dxe6 {[%emt 0:01:04]} Qc7 {[%emt 0:01:42]} 16. Rc1 {[%emt 0:10:07]} Rfd8 {[%emt 0:11:30]} 17. Qb3 {[%emt 0:05:08]} Qc8 {[%emt 0:00:00]} 18. c5 {[%emt 0:11:19]} d5 {[%emt 0:00:00]} 19. exd5 {[%emt 0:00:35]} Nfxd5 {[%emt 0:06:26]} 20. Bxd5 {[%emt 0:01:00]} cxd5 {[%emt 0:00:45]} 21. Nb5 {[%emt 0:12:27]} Rb8 {[%emt 0:08:19]} 22. Nxa7 {[%emt 0:00:00]} Qxe6 {[%emt 0:06:10]} 23. b5 {[%emt 0:05:25]} Rd7 {[%emt 0:03:15]} 24. c6 {[%emt 0:16:01]} bxc6 {[%emt 0:00:01]} 25. Nxc6 {[%emt 0:00:04]} Nxc6 {[%emt 0:00:02]} 26. Rxc6 {[%emt 0:00:06]} Qxc6 {[%emt 0:00:04]} 27. bxc6 {[%emt 0:00:04]} Rxb3 {[%emt 0:00:03]} 28. cxd7 Rb8 {[%emt 0:00:01]} 29. Be7 {[%emt 0:00:01]} 1/2-1/2

[Event "World Senior chT-65 2019"]
[Site "Rhodes"]
[Date "2019.04.21"]
[Round "6.12"]
[White "Buchal, Stephan"]
[Black "Just, Joachim"]
[Result "1/2-1/2"]
[ECO "B30"]
[WhiteElo "2283"]
[BlackElo "1970"]
[Annotator "NA"]
[PlyCount "46"]
[EventDate "2019.04.16"]
[EventType "team-tourn"]
[EventCountry "GRE"]
[SourceTitle "playchess.com"]
[Source "ChessBase"]
[SourceQuality "1"]
[WhiteTeam "Germany"]
[BlackTeam "Germany"]
[WhiteTeamCountry "GER"]
[BlackTeamCountry "GER"]
[TimeControl "40/5400+30:1800+30"]

1. e4 {[%emt 0:00:00]} e6 {[%emt 0:00:00]} 2. d3 {[%emt 0:00:13]} c5 {[%emt 0:00:16]} 3. Nf3 {[%emt 0:00:16]} Nc6 {[%emt 0:00:23]} 4. g3 {[%emt 0:00:15]} g6 {[%emt 0:00:27]} 5. Bg5 {[%emt 0:02:26]} Qc7 {[%emt 0:01:38]} 6. Bg2 {[%emt 0:00:56]} Bg7 {[%emt 0:00:28]} 7. c3 {[%emt 0:04:51]} b6 {[%emt 0:03:24]} 8. O-O {[%emt 0:02:18]} h6 {[%emt 0:01:59]} 9. Be3 {[%emt 0:05:27]} Bb7 {[%emt 0:01:28]} 10. d4 {[%emt 0:01:58]} Nce7 {[%emt 0:06:07]} 11. Nbd2 {[%emt 0:16:06]} d6 {[%emt 0:05:34]} 12. Re1 {[%emt 0:06:49]} Rd8 {[%emt 0:05:18]} 13. Qe2 {[%emt 0:05:51]} g5 {[%emt 0:03:00]} 14. h3 {[%emt 0:01:34]} Ng6 {[%emt 0:05:01]} 15. e5 {[%emt 0:04:19]} N8e7 {[%emt 0:11:57]} 16. exd6 {[%emt 0:01:17]} Rxd6 {[%emt 0:01:17]} 17. dxc5 {[%emt 0:00:16]} bxc5 {[%emt 0:00:24]} 18. Qb5+ {[%emt 0:01:11]} Bc6 {[%emt 0:01:05]} 19. Qxc5 {[%emt 0:01:18]} O-O {[%emt 0:01:30]} 20. Qxa7 {[%emt 0:01:23]} Bb7 {[%emt 0:02:53]} 21. Nc4 {[%emt 0:12:42]} Ra8 {[%emt 0:01:59]} 22. Qxb7 {[%emt 0:20:29]} Qxb7 {[%emt 0:01:07]} 23. Nxd6 {[%emt 0:00:34]} Qb8 {[%emt 0:02:53]} 1/2-1/2

[Event "World Senior chT-65 2019"]
[Site "Rhodes"]
[Date "2019.04.21"]
[Round "6.13"]
[White "Herzog, Adolf"]
[Black "Faibisovich, Vadim Z"]
[Result "0-1"]
[ECO "D02"]
[WhiteElo "2337"]
[BlackElo "2302"]
[Annotator "NA"]
[PlyCount "80"]
[EventDate "2019.04.16"]
[EventType "team-tourn"]
[EventCountry "GRE"]
[SourceTitle "playchess.com"]
[Source "ChessBase"]
[SourceQuality "1"]
[WhiteTeam "Austria"]
[BlackTeam "Russia"]
[WhiteTeamCountry "AUT"]
[BlackTeamCountry "RUS"]
[TimeControl "40/5400+30:1800+30"]

1. d4 {[%emt 0:00:00]} Nf6 {[%emt 0:00:00]} 2. Nf3 {[%emt 0:00:00]} e6 {[%emt 0:01:24]} 3. Bf4 {[%emt 0:00:01]} c5 {[%emt 0:02:59]} 4. c3 {[%emt 0:00:27]} d5 {[%emt 0:07:25]} 5. e3 {[%emt 0:00:22]} Bd6 {[%emt 0:03:46]} 6. Bg3 {[%emt 0:07:43]} Nc6 {[%emt 0:06:26]} 7. Nbd2 {[%emt 0:01:10]} O-O {[%emt 0:02:22]} 8. Bd3 {[%emt 0:00:59]} g6 {[%emt 0:15:56]} 9. Qe2 {[%emt 0:08:28]} c4 {[%emt 0:09:31]} 10. Bc2 {[%emt 0:00:32]} b5 {[%emt 0:00:30]} 11. a3 {[%emt 0:06:17]} Bb7 {[%emt 0:00:32]} 12. Bh4 {[%emt 0:14:11]} Be7 {[%emt 0:00:57]} 13. Bg5 {[%emt 0:03:54]} a5 {[%emt 0:07:35]} 14. h4 {[%emt 0:08:31]} b4 {[%emt 0:02:31]} 15. h5 {[%emt 0:01:35]} b3 {[%emt 0:01:10]} 16. Bb1 {[%emt 0:01:01]} Nxh5 {[%emt 0:02:13]} 17. g4 {[%emt 0:07:14]} Bxg5 {[%emt 0:02:09]} 18. gxh5 {[%emt 0:00:06]} Bf6 {[%emt 0:03:11]} 19. e4 {[%emt 0:00:48]} Bg7 {[%emt 0:01:13]} 20. Qe3 {[%emt 0:01:53]} Qe7 {[%emt 0:08:49]} 21. e5 {[%emt 0:02:05]} f5 {[%emt 0:04:15]} 22. exf6 {[%emt 0:00:13]} Qxf6 {[%emt 0:00:29]} 23. hxg6 {[%emt 0:00:16]} h6 {[%emt 0:00:33]} 24. Rxh6 {[%emt 0:05:08]} Bxh6 {[%emt 0:01:38]} 25. Qxh6 {[%emt 0:00:05]} Qg7 {[%emt 0:00:12]} 26. Qh3 {[%emt 0:00:06]} Rae8 {[%emt 0:00:36]} 27. Ng5 {[%emt 0:01:50]} Bc8 {[%emt 0:00:20]} 28. Nf7 {[%emt 0:00:28]} Rxf7 {[%emt 0:04:04]} 29. gxf7+ {[%emt 0:00:12]} Kxf7 {[%emt 0:00:09]} 30. Qh5+ {[%emt 0:03:28]} Ke7 {[%emt 0:00:23]} 31. Qh4+ {[%emt 0:01:02]} Kd6 {[%emt 0:03:21]} 32. Qh7 {[%emt 0:06:52]} Qxh7 {[%emt 0:01:23]} 33. Bxh7 {[%emt 0:00:05]} Rh8 {[%emt 0:01:04]} 34. Bg6 {[%emt 0:00:19]} Ne7 {[%emt 0:01:08]} 35. Bb1 {[%emt 0:00:51]} Rh1+ {[%emt 0:00:53]} 36. Ke2 {[%emt 0:00:04]} e5 {[%emt 0:01:09]} 37. dxe5+ {[%emt 0:00:23]} Kxe5 {[%emt 0:00:10]} 38. Nf3+ {[%emt 0:00:55]} Kf4 {[%emt 0:00:13]} 39. Ne1 {[%emt 0:00:34]} Bg4+ {[%emt 0:00:42]} 40. Kd2 {[%emt 0:00:00]} Rh2 {[%emt 0:01:21]} 0-1

[Event "World Senior chT-65 2019"]
[Site "Rhodes"]
[Date "2019.04.21"]
[Round "6.14"]
[White "Karasev, Vladimir I"]
[Black "Petschar, Kurt"]
[Result "1-0"]
[ECO "B30"]
[WhiteElo "2281"]
[BlackElo "2226"]
[Annotator "NA"]
[PlyCount "69"]
[EventDate "2019.04.16"]
[EventType "team-tourn"]
[EventCountry "GRE"]
[SourceTitle "playchess.com"]
[Source "ChessBase"]
[SourceQuality "1"]
[WhiteTeam "Russia"]
[BlackTeam "Austria"]
[WhiteTeamCountry "RUS"]
[BlackTeamCountry "AUT"]
[TimeControl "40/5400+30:1800+30"]

1. Nf3 {[%emt 0:00:00]} c5 {[%emt 0:00:15]} 2. e4 {[%emt 0:00:00]} Nc6 {[%emt 0:00:00]} 3. Bb5 {[%emt 0:00:09]} e6 {[%emt 0:01:03]} 4. Bxc6 {[%emt 0:00:04]} bxc6 {[%emt 0:02:21]} 5. e5 {[%emt 0:02:09]} f6 {[%emt 0:00:19]} 6. O-O {[%emt 0:01:14]} fxe5 {[%emt 0:00:00]} 7. Nxe5 {[%emt 0:00:07]} Nf6 {[%emt 0:00:17]} 8. d3 {[%emt 0:00:32]} d6 9. Nc4 {[%emt 0:02:19]} Be7 {[%emt 0:02:57]} 10. f4 {[%emt 0:01:35]} O-O {[%emt 0:00:19]} 11. Nc3 {[%emt 0:01:24]} Nd5 {[%emt 0:03:02]} 12. Bd2 {[%emt 0:05:55]} Nb6 13. Qe2 {[%emt 0:14:31]} Bd7 {[%emt 0:01:44]} 14. Rae1 {[%emt 0:00:24]} Qc7 {[%emt 0:10:58]} 15. f5 e5 {[%emt 0:05:24]} 16. Qh5 {[%emt 0:03:22]} Nxc4 {[%emt 0:00:00]} 17. dxc4 {[%emt 0:01:45]} Qc8 18. g4 {[%emt 0:00:25]} Qe8 19. Qxe8 {[%emt 0:01:21]} Raxe8 {[%emt 0:13:06]} 20. h3 {[%emt 0:15:43]} h5 {[%emt 0:00:00]} 21. Kg2 {[%emt 0:13:10]} Rd8 {[%emt 0:00:42]} 22. Ne4 {[%emt 0:00:30]} d5 {[%emt 0:00:00]} 23. Bg5 {[%emt 0:02:18]} Bxg5 {[%emt 0:00:08]} 24. Nxg5 {[%emt 0:02:23]} Rfe8 {[%emt 0:03:02]} 25. gxh5 {[%emt 0:00:00]} e4 {[%emt 0:05:24]} 26. f6 {[%emt 0:00:00]} gxf6 {[%emt 0:00:05]} 27. Rxf6 {[%emt 0:00:00]} Rf8 {[%emt 0:00:09]} 28. Ref1 {[%emt 0:00:00]} Rxf6 {[%emt 0:01:09]} 29. Rxf6 {[%emt 0:00:00]} Be8 {[%emt 0:01:20]} 30. h6 {[%emt 0:00:00]} Bh5 {[%emt 0:18:09]} 31. h7+ {[%emt 0:23:16]} Kh8 {[%emt 0:00:00]} 32. Rh6 {[%emt 0:00:30]} Be8 {[%emt 0:00:00]} 33. Re6 {[%emt 0:00:30]} Bh5 {[%emt 0:00:00]} 34. Kg3 {[%emt 0:01:39]} Re8 {[%emt 0:01:48]} 35. Rf6 {[%emt 0:00:11]} 1-0

[Event "World Senior chT-65 2019"]
[Site "Rhodes"]
[Date "2019.04.21"]
[Round "6.16"]
[White "Blechzin, Igor"]
[Black "Ager, Josef"]
[Result "1-0"]
[ECO "E66"]
[WhiteElo "2210"]
[BlackElo "2122"]
[Annotator "NA"]
[PlyCount "97"]
[EventDate "2019.04.16"]
[EventType "team-tourn"]
[EventCountry "GRE"]
[SourceTitle "playchess.com"]
[Source "ChessBase"]
[SourceQuality "1"]
[WhiteTeam "Russia"]
[BlackTeam "Austria"]
[WhiteTeamCountry "RUS"]
[BlackTeamCountry "AUT"]
[TimeControl "40/5400+30:1800+30"]

1. c4 {[%emt 0:00:00]} g6 {[%emt 0:00:00]} 2. d4 {[%emt 0:00:22]} Nf6 {[%emt 0:00:00]} 3. Nf3 {[%emt 0:00:12]} Bg7 {[%emt 0:00:00]} 4. g3 {[%emt 0:00:31]} O-O {[%emt 0:00:04]} 5. Bg2 {[%emt 0:00:04]} d6 {[%emt 0:00:08]} 6. O-O {[%emt 0:00:14]} Nc6 {[%emt 0:00:09]} 7. d5 {[%emt 0:04:12]} Na5 {[%emt 0:00:09]} 8. Nfd2 {[%emt 0:00:51]} c5 {[%emt 0:00:11]} 9. Nc3 {[%emt 0:00:55]} a6 {[%emt 0:00:19]} 10. Qc2 {[%emt 0:00:57]} Rb8 {[%emt 0:00:09]} 11. b3 {[%emt 0:01:58]} b5 {[%emt 0:00:16]} 12. Bb2 {[%emt 0:01:18]} e5 {[%emt 0:02:22]} 13. dxe6 {[%emt 0:04:11]} Bxe6 {[%emt 0:00:10]} 14. cxb5 {[%emt 0:04:53]} axb5 {[%emt 0:00:07]} 15. Nce4 {[%emt 0:00:49]} Nxe4 {[%emt 0:02:11]} 16. Nxe4 {[%emt 0:00:31]} Bxb2 {[%emt 0:07:22]} 17. Qxb2 {[%emt 0:00:09]} f6 {[%emt 0:00:06]} 18. Rfd1 {[%emt 0:06:43]} Nb7 {[%emt 0:00:07]} 19. Qd2 {[%emt 0:06:52]} Qe7 {[%emt 0:03:39]} 20. Qf4 {[%emt 0:08:35]} g5 {[%emt 0:04:11]} 21. Qd2 {[%emt 0:03:48]} Rbd8 {[%emt 0:01:54]} 22. Nc3 {[%emt 0:01:06]} b4 {[%emt 0:01:20]} 23. Nd5 {[%emt 0:00:08]} Qf7 {[%emt 0:00:22]} 24. a3 {[%emt 0:01:47]} Na5 {[%emt 0:03:00]} 25. Qb2 {[%emt 0:03:30]} Nc6 {[%emt 0:03:52]} 26. axb4 {[%emt 0:07:44]} Nxb4 {[%emt 0:14:08]} 27. Nxb4 {[%emt 0:00:54]} cxb4 {[%emt 0:00:05]} 28. Rd3 {[%emt 0:00:18]} Qc7 {[%emt 0:06:16]} 29. Re3 {[%emt 0:02:23]} Bf5 {[%emt 0:04:24]} 30. Bd5+ {[%emt 0:06:30]} Kg7 {[%emt 0:01:40]} 31. Qd4 {[%emt 0:02:30]} Qc5 {[%emt 0:02:53]} 32. Re7+ {[%emt 0:00:26]} Kg6 {[%emt 0:00:09]} 33. Qxc5 {[%emt 0:01:33]} dxc5 {[%emt 0:00:06]} 34. e4 {[%emt 0:00:06]} Kh6 {[%emt 0:02:31]} 35. Raa7 {[%emt 0:04:10]} Bg6 {[%emt 0:00:09]} 36. g4 {[%emt 0:06:15]} Rfe8 {[%emt 0:04:27]} 37. Rxe8 {[%emt 0:05:02]} Rxe8 {[%emt 0:00:14]} 38. f3 {[%emt 0:00:06]} Rd8 {[%emt 0:00:19]} 39. Rc7 {[%emt 0:01:11]} f5 {[%emt 0:00:27]} 40. gxf5 {[%emt 0:00:00]} Bxf5 {[%emt 0:00:00]} 41. Rxc5 {[%emt 0:02:09]} Bh3 {[%emt 0:00:47]} 42. Kf2 {[%emt 0:02:48]} Rf8 {[%emt 0:01:04]} 43. Kg3 {[%emt 0:00:48]} Bf1 {[%emt 0:00:06]} 44. Rc6+ {[%emt 0:00:32]} Kg7 {[%emt 0:00:14]} 45. Rc7+ {[%emt 0:00:59]} Kg6 {[%emt 0:00:19]} 46. e5 {[%emt 0:02:29]} Bd3 {[%emt 0:01:04]} 47. Rb7 {[%emt 0:03:16]} Rd8 {[%emt 0:03:46]} 48. Bf7+ {[%emt 0:00:58]} Kf5 {[%emt 0:00:53]} 49. e6 {[%emt 0:00:13]} 1-0

[Event "World Senior chT-65 2019"]
[Site "Rhodes"]
[Date "2019.04.21"]
[Round "6.17"]
[White "Vaisser, Anatoli"]
[Black "Renman, Nils-Gustaf"]
[Result "1-0"]
[ECO "D10"]
[WhiteElo "2482"]
[BlackElo "2358"]
[Annotator "ChessBase"]
[PlyCount "127"]
[EventDate "2019.04.16"]
[EventType "team-tourn"]
[EventCountry "GRE"]
[SourceTitle "playchess.com"]
[Source "ChessBase"]
[SourceQuality "1"]
[WhiteTeam "France"]
[BlackTeam "Sweden"]
[WhiteTeamCountry "FRA"]
[BlackTeamCountry "SWE"]
[TimeControl "40/5400+30:1800+30"]

1. d4 {[%emt 0:00:00]} d5 {[%emt 0:00:00]} 2. c4 {[%emt 0:00:00]} c6 {[%emt 0:00:18]} 3. cxd5 {[%emt 0:00:03]} cxd5 {[%emt 0:00:00]} 4. Bf4 {[%emt 0:00:06]} Nf6 {[%emt 0:00:54]} 5. e3 {[%emt 0:00:31]} a6 {[%emt 0:00:17]} 6. Bd3 {[%emt 0:00:47]} Nc6 {[%emt 0:00:29]} 7. Nc3 {[%emt 0:05:24]} Bg4 {[%emt 0:00:11]} 8. Nge2 {[%emt 0:00:18]} e6 {[%emt 0:00:11]} 9. Rc1 {[%emt 0:00:44]} Be7 {[%emt 0:01:06]} 10. O-O {[%emt 0:03:17]} Rc8 {[%emt 0:02:15]} 11. a3 {[%emt 0:08:26]} O-O {[%emt 0:22:03]} 12. Na4 {[%emt 0:04:56]} Nd7 {[%emt 0:01:12]} 13. Bg3 {[%emt 0:03:02]} b5 {[%emt 0:10:41]} 14. f3 {[%emt 0:05:02]} Bh5 {[%emt 0:02:55]} 15. Nc5 {[%emt 0:02:51]} Nxc5 {[%emt 0:04:10]} 16. dxc5 {[%emt 0:00:18]} Bg6 {[%emt 0:02:58]} 17. Nf4 {[%emt 0:07:22]} Bxd3 {[%emt 0:06:30]} 18. Nxd3 {[%emt 0:00:39]} Na5 {[%emt 0:18:35]} 19. b3 {[%emt 0:03:02]} Bh4 {[%emt 0:02:18]} 20. Bxh4 {[%emt 0:05:36]} Qxh4 {[%emt 0:00:07]} 21. Nb4 {[%emt 0:00:35]} Qe7 {[%emt 0:04:19]} 22. Qc2 {[%emt 0:03:24]} Qa7 {[%emt 0:00:22]} 23. Qc3 {[%emt 0:01:31]} Rfd8 {[%emt 0:04:31]} 24. Rfd1 {[%emt 0:00:39]} f6 {[%emt 0:02:22]} 25. Rd3 {[%emt 0:08:42]} Rd7 {[%emt 0:00:56]} 26. Rd2 {[%emt 0:06:42]} Rdc7 {[%emt 0:00:57]} 27. Nd3 {[%emt 0:00:19]} Nc6 {[%emt 0:00:24]} 28. b4 {[%emt 0:00:49]} Kf7 {[%emt 0:01:21]} 29. Rcd1 {[%emt 0:02:42]} Rd7 {[%emt 0:00:10]} 30. Nf4 {[%emt 0:02:48]} Qc7 {[%emt 0:02:40]} 31. Qc2 {[%emt 0:05:09]} Rh8 {[%emt 0:00:22]} 32. Nd3 {[%emt 0:01:16]} Rdd8 {[%emt 0:02:53]} 33. f4 {[%emt 0:03:12]} g6 {[%emt 0:00:50]} 34. Qb3 {[%emt 0:02:03]} Kg7 {[%emt 0:01:36]} 35. Ne1 {[%emt 0:01:03]} d4 {[%emt 0:02:03]} 36. Nf3 {[%emt 0:00:42]} dxe3 {[%emt 0:01:29]} 37. Qxe3 {[%emt 0:00:08]} Rxd2 {[%emt 0:01:31]} 38. Rxd2 {[%emt 0:00:13]} Rd8 {[%emt 0:00:16]} 39. Nd4 {[%emt 0:06:19]} Nxd4 {[%emt 0:00:40]} 40. Rxd4 {[%emt 0:00:00]} Kf7 {[%emt 0:00:00]} 41. Qd2 {[%emt 0:00:56]} Rxd4 {[%emt 0:01:26]} 42. Qxd4 {[%emt 0:00:05]} Qc6 {[%emt 0:06:54]} 43. Kf2 {[%emt 0:04:36]} h5 {[%emt 0:00:36]} 44. Qd3 {[%emt 0:05:33]} h4 {[%emt 0:07:26]} 45. Qf3 {[%emt 0:03:25]} Qd7 {[%emt 0:00:07]} 46. Ke3 {[%emt 0:00:13]} f5 {[%emt 0:02:33]} 47. g4 {[%emt 0:03:56]} hxg3 {[%emt 0:01:21]} 48. hxg3 {[%emt 0:02:18]} e5 {[%emt 0:03:37]} 49. fxe5 {[%emt 0:00:36]} Ke6 {[%emt 0:03:07]} 50. Qa8 {[%emt 0:09:39]} Kxe5 {[%emt 0:00:38]} 51. Qh8+ {[%emt 0:01:06]} Ke6 {[%emt 0:00:07]} 52. Qd4 {[%emt 0:03:46]} Qc6 {[%emt 0:01:12]} 53. Kf2 {[%emt 0:01:18]} Qh1 {[%emt 0:03:19]} 54. Qd6+ {[%emt 0:00:51]} Kf7 {[%emt 0:00:07]} 55. c6 {[%emt 0:01:36]} Qh2+ {[%emt 0:00:12]} 56. Ke3 {[%emt 0:02:34]} Qg1+ {[%emt 0:00:21]} 57. Kd2 {[%emt 0:00:22]} Qf2+ {[%emt 0:00:39]} 58. Kd3 {[%emt 0:00:28]} Qf3+ {[%emt 0:01:20]} 59. Kd4 {[%emt 0:00:50]} Qf2+ {[%emt 0:04:39]} 60. Kd5 {[%emt 0:00:14]} Qf3+ {[%emt 0:01:22]} 61. Kc5 {[%emt 0:00:14]} Qe3+ {[%emt 0:00:10]} 62. Qd4 {[%emt 0:00:12]} Qxg3 {[%emt 0:01:28]} 63. Qd7+ {[%emt 0:00:14]} Kg8 {[%emt 0:00:14]} 64. c7 {[%emt 0:00:13]} 1-0

[Event "World Senior chT-65 2019"]
[Site "Rhodes"]
[Date "2019.04.21"]
[Round "6.18"]
[White "Uddenfeldt, Dan"]
[Black "Seret, Jean-Luc"]
[Result "1-0"]
[ECO "A41"]
[WhiteElo "2339"]
[BlackElo "2332"]
[Annotator "NA"]
[PlyCount "83"]
[EventDate "2019.04.16"]
[EventType "team-tourn"]
[EventCountry "GRE"]
[SourceTitle "playchess.com"]
[Source "ChessBase"]
[SourceQuality "1"]
[WhiteTeam "Sweden"]
[BlackTeam "France"]
[WhiteTeamCountry "SWE"]
[BlackTeamCountry "FRA"]
[TimeControl "40/5400+30:1800+30"]

1. d4 {[%emt 0:00:00]} d6 {[%emt 0:00:00]} 2. c4 {[%emt 0:00:32]} e5 {[%emt 0:00:11]} 3. Nf3 {[%emt 0:04:52]} e4 {[%emt 0:01:10]} 4. Ng5 {[%emt 0:01:16]} f5 {[%emt 0:00:25]} 5. g3 {[%emt 0:01:46]} Be7 {[%emt 0:01:01]} 6. h4 {[%emt 0:02:28]} Nf6 {[%emt 0:02:22]} 7. Nc3 {[%emt 0:01:25]} O-O {[%emt 0:02:45]} 8. e3 {[%emt 0:00:47]} c6 {[%emt 0:02:35]} 9. a3 {[%emt 0:02:34]} Na6 {[%emt 0:02:06]} 10. Bd2 {[%emt 0:02:50]} Nc7 {[%emt 0:02:03]} 11. Be2 {[%emt 0:02:46]} Ne6 {[%emt 0:20:38]} 12. Nh3 {[%emt 0:01:20]} c5 {[%emt 0:01:53]} 13. d5 {[%emt 0:00:23]} Nc7 {[%emt 0:00:43]} 14. Qb3 {[%emt 0:01:31]} Nd7 {[%emt 0:08:43]} 15. Nf4 {[%emt 0:07:04]} Ne5 {[%emt 0:00:00]} 16. a4 {[%emt 0:02:36]} g6 {[%emt 0:00:25]} 17. Nb5 {[%emt 0:02:17]} Ne8 {[%emt 0:01:13]} 18. a5 {[%emt 0:01:09]} a6 {[%emt 0:03:58]} 19. Na3 {[%emt 0:00:48]} Rb8 {[%emt 0:00:27]} 20. Bc3 {[%emt 0:01:23]} Bf6 {[%emt 0:00:32]} 21. Nb1 {[%emt 0:01:06]} Ng7 {[%emt 0:01:37]} 22. Nd2 {[%emt 0:01:59]} Bd7 {[%emt 0:02:01]} 23. Ra2 {[%emt 0:04:16]} Be8 {[%emt 0:01:03]} 24. f3 {[%emt 0:02:23]} exf3 {[%emt 0:01:24]} 25. Bxf3 {[%emt 0:01:09]} Qe7 {[%emt 0:03:16]} 26. Be2 {[%emt 0:05:02]} h6 {[%emt 0:00:25]} 27. Ng2 {[%emt 0:07:58]} g5 {[%emt 0:01:08]} 28. hxg5 {[%emt 0:00:59]} hxg5 {[%emt 0:00:05]} 29. Rh6 {[%emt 0:00:35]} Nd7 {[%emt 0:06:49]} 30. Ra3 {[%emt 0:03:29]} Be5 {[%emt 0:00:26]} 31. Kf2 {[%emt 0:05:41]} Nf6 {[%emt 0:00:30]} 32. Qd1 {[%emt 0:06:15]} Ne4+ {[%emt 0:01:34]} 33. Nxe4 {[%emt 0:01:33]} fxe4+ {[%emt 0:00:08]} 34. Kg1 {[%emt 0:00:25]} Bxg3 {[%emt 0:02:38]} 35. Bg4 {[%emt 0:00:47]} Bd7 {[%emt 0:02:31]} 36. Be6+ {[%emt 0:00:30]} Bxe6 {[%emt 0:03:38]} 37. dxe6 {[%emt 0:00:04]} Rf3 {[%emt 0:01:56]} 38. Qd5 {[%emt 0:01:55]} Rbf8 {[%emt 0:02:15]} 39. Ra1 {[%emt 0:01:00]} Bf2+ {[%emt 0:00:38]} 40. Kh1 {[%emt 0:00:00]} Bg3 {[%emt 0:00:00]} 41. Nf4 {[%emt 0:06:15]} Bxf4 {[%emt 0:18:07]} 42. Qxe4 {[%emt 0:00:42]} 1-0

[Event "World Senior chT-65 2019"]
[Site "Rhodes"]
[Date "2019.04.21"]
[Round "6.19"]
[White "Sharif, Mehrshad"]
[Black "Hammar, Bengt"]
[Result "1-0"]
[ECO "A05"]
[WhiteElo "2331"]
[BlackElo "2206"]
[Annotator "NA"]
[PlyCount "87"]
[EventDate "2019.04.16"]
[EventType "team-tourn"]
[EventCountry "GRE"]
[SourceTitle "playchess.com"]
[Source "ChessBase"]
[SourceQuality "1"]
[WhiteTeam "France"]
[BlackTeam "Sweden"]
[WhiteTeamCountry "FRA"]
[BlackTeamCountry "SWE"]
[TimeControl "40/5400+30:1800+30"]

1. Nf3 {[%emt 0:00:00]} Nf6 {[%emt 0:00:02]} 2. g3 {[%emt 0:00:00]} g6 {[%emt 0:00:08]} 3. b3 {[%emt 0:00:00]} Bg7 {[%emt 0:00:14]} 4. Bb2 {[%emt 0:00:09]} O-O {[%emt 0:03:37]} 5. Bg2 {[%emt 0:00:40]} c5 {[%emt 0:02:51]} 6. c4 {[%emt 0:00:57]} Nc6 {[%emt 0:01:10]} 7. O-O {[%emt 0:00:42]} d5 {[%emt 0:11:14]} 8. cxd5 {[%emt 0:00:55]} Nxd5 {[%emt 0:00:07]} 9. Bxg7 {[%emt 0:00:46]} Kxg7 {[%emt 0:00:03]} 10. d4 {[%emt 0:01:05]} cxd4 {[%emt 0:02:11]} 11. Nxd4 {[%emt 0:00:14]} Ndb4 {[%emt 0:02:28]} 12. Nxc6 {[%emt 0:02:27]} Nxc6 {[%emt 0:00:25]} 13. Bxc6 {[%emt 0:04:45]} bxc6 {[%emt 0:00:23]} 14. Qxd8 {[%emt 0:00:21]} Rxd8 {[%emt 0:00:08]} 15. Nc3 {[%emt 0:00:35]} Ba6 {[%emt 0:01:48]} 16. Rfd1 {[%emt 0:01:52]} c5 {[%emt 0:00:42]} 17. Kf1 {[%emt 0:05:07]} Rd6 {[%emt 0:13:33]} 18. Ke1 {[%emt 0:03:59]} Rb8 {[%emt 0:04:27]} 19. Rxd6 {[%emt 0:09:21]} exd6 {[%emt 0:00:59]} 20. Rd1 {[%emt 0:00:36]} Rd8 {[%emt 0:05:30]} 21. Ne4 {[%emt 0:11:52]} Re8 {[%emt 0:01:23]} 22. Rxd6 {[%emt 0:00:31]} Bxe2 {[%emt 0:00:20]} 23. Kxe2 {[%emt 0:00:32]} Rxe4+ {[%emt 0:00:04]} 24. Kd3 {[%emt 0:01:03]} Re7 {[%emt 0:04:21]} 25. Rd5 {[%emt 0:11:47]} Kf6 {[%emt 0:01:16]} 26. Rxc5 {[%emt 0:00:28]} Ke6 {[%emt 0:00:33]} 27. b4 {[%emt 0:03:48]} Kd6 {[%emt 0:01:13]} 28. a3 {[%emt 0:02:57]} h5 {[%emt 0:00:33]} 29. h4 {[%emt 0:00:55]} Re1 {[%emt 0:03:24]} 30. Ra5 {[%emt 0:06:05]} Re7 {[%emt 0:00:22]} 31. f3 {[%emt 0:01:14]} Kc6 {[%emt 0:00:33]} 32. g4 {[%emt 0:00:25]} hxg4 {[%emt 0:01:24]} 33. fxg4 {[%emt 0:02:31]} Kb6 {[%emt 0:00:19]} 34. h5 {[%emt 0:00:46]} gxh5 {[%emt 0:00:33]} 35. gxh5 {[%emt 0:00:25]} Re1 {[%emt 0:00:19]} 36. Rf5 {[%emt 0:13:49]} Rh1 {[%emt 0:02:57]} 37. Kc4 {[%emt 0:02:05]} Rh3 {[%emt 0:02:57]} 38. Rf6+ {[%emt 0:05:42]} Kb7 {[%emt 0:00:08]} 39. Rxf7+ {[%emt 0:00:15]} Kb6 {[%emt 0:00:06]} 40. Rf6+ {[%emt 0:00:00]} Kb7 {[%emt 0:00:00]} 41. h6 {[%emt 0:02:38]} Rxa3 {[%emt 0:00:44]} 42. Kc5 {[%emt 0:04:13]} Rh3 {[%emt 0:05:46]} 43. Rf7+ {[%emt 0:00:00]} Kb8 {[%emt 0:00:05]} 44. h7 {[%emt 0:00:00]} 1-0